fUST/lending_fUST_20250124
["ID","MTS","AMOUNT","RATE_DAILY","PERIOD"]
[350215338,1737696659366,-500.0,0.00021228,3]
[350215339,1737696659382,-691.98,0.00021228,3]
[350215340,1737696659391,-190.35,0.00021228,3]
[350215341,1737696659401,-500.0,0.00021228,3]
[350215342,1737696659411,-9911.72,0.00021228,3]
[350215343,1737696659420,-2566.52,0.00021228,3]
[350215344,1737696659430,-500.0,0.00021228,3]
[350215345,1737696659440,-500.0,0.00021228,3]
[350215346,1737696659450,-500.0,0.00021229,3]
[350215347,1737696659460,-500.0,0.00021229,3]
[350215348,1737696659470,-4162.13,0.00021229,3]
[350215349,1737696659479,-359.22,0.00021229,3]
[350215350,1737696659489,-276.72,0.00021229,3]
[350215351,1737696659497,-500.0,0.00021229,3]
[350215352,1737696659507,-463.62,0.00021229,3]
[350215353,1737696659516,-500.0,0.0002123,3]
[350215354,1737696659526,-500.0,0.0002123,3]
[350215355,1737696659535,-500.0,0.0002123,3]
[350215356,1737696659543,-447.18,0.0002123,3]
[350215357,1737696659552,-378.18,0.0002123,3]
[350215358,1737696659562,-395.0,0.00021245,2]
[350215359,1737696659571,-1200.03,0.00021269,3]
[350215360,1737696659580,-500.0,0.00021269,3]
[350215361,1737696659590,-1425.27,0.00021364,3]
[350215362,1737696659600,-275.16,0.00021364,3]
[350215363,1737696659609,-2140.23,0.00021364,3]
[350215364,1737696659619,-956.22,0.00021364,3]
[350215365,1737696659628,-562.0,0.00021364,3]
[350215366,1737696659637,-1228.47,0.00021364,3]
[350215367,1737696659649,-500.0,0.00021364,3]
[350215368,1737696659667,-759.03,0.00021364,3]
[350215369,1737696659700,-500.0,0.00021364,3]
[350215370,1737696659723,-500.0,0.00021364,3]
[350215371,1737696659747,-500.0,0.00021364,3]
[350215372,1737696659768,-1061.97,0.00021364,3]
[350215373,1737696659793,-1873.1,0.00021364,3]
[350215374,1737696659811,-500.0,0.00021364,3]
[350215375,1737696659826,-500.0,0.00021364,3]
[350215376,1737696659843,-800.88,0.00021364,3]
[350215377,1737696659864,-1876.67,0.00021364,3]
[350215378,1737696659883,-531.5,0.00021364,3]
[350215379,1737696659896,-500.0,0.00021365,3]
[350215380,1737696659914,-433.44,0.00021365,3]
[350215381,1737696659929,-1556.76,0.00021365,3]
[350215382,1737696659946,-500.0,0.00021365,3]
[350215383,1737696659962,-387.48,0.00021365,3]
[350215384,1737696659982,-500.0,0.00021365,3]
[350215385,1737696660000,-500.0,0.00021365,3]
[350215386,1737696660017,-641.64,0.00021365,3]
[350215387,1737696660032,-500.0,0.00021365,2]
[350215388,1737696660050,-500.0,0.00021365,3]
[350215389,1737696660066,-500.0,0.00021365,3]
[350215390,1737696660082,-644.83,0.00021365,3]
[350215391,1737696660097,-9109.92,0.00021365,3]
[350215392,1737696660112,-500.0,0.00021365,3]
[350215393,1737696660127,-500.0,0.00021365,3]
[350215394,1737696660142,-500.0,0.00021365,3]
[350215395,1737696660157,-500.0,0.00021365,3]
[350215396,1737696660172,-691.98,0.00021365,3]
[350215397,1737696660185,-500.0,0.00021365,3]
[350215398,1737696660211,-9911.72,0.00021365,3]
[350215399,1737696660237,-2566.52,0.00021365,3]
[350215400,1737696660265,-500.0,0.00021365,3]
[350215401,1737696660290,-500.0,0.00021365,3]
[350215402,1737696660317,-500.0,0.00021366,3]
[350215403,1737696660344,-500.0,0.00021366,3]
[350215404,1737696660369,-887.41,0.00021366,3]
[350215405,1737696660395,-4162.13,0.00021366,3]
[350215406,1737696660420,-500.0,0.00021366,3]
[350215407,1737696660445,-500.0,0.00021367,3]
[350215408,1737696660469,-500.0,0.00021367,3]
[350215409,1737696660485,-500.0,0.00021367,3]
[350215410,1737696660515,-1200.03,0.00021406,3]
[350215411,1737696660543,-500.0,0.00021406,3]
[350215412,1737696660572,-154.1761492,0.00021425,2]
[350215413,1737696660602,-4190.94348186,0.00021427,2]
[350215414,1737696660703,-1425.27,0.00021501,3]
[350215415,1737696660777,-2140.23,0.00021501,3]
[350215416,1737696660824,-956.22,0.00021501,3]
[350215417,1737696660863,-562.0,0.00021501,3]
[350215418,1737696660903,-1228.47,0.00021501,3]
[350215419,1737696660942,-500.0,0.00021501,3]
[350215420,1737696660979,-759.03,0.00021501,3]
[350215421,1737696661003,-500.0,0.00021501,3]
[350215422,1737696661250,-500.0,0.00021501,3]
[350215423,1737696661260,-500.0,0.00021501,3]
[350215424,1737696661270,-1061.97,0.00021501,3]
[350215425,1737696661280,-1873.1,0.00021501,3]
[350215426,1737696661290,-500.0,0.00021501,3]
[350215427,1737696661299,-500.0,0.00021501,3]
[350215428,1737696661309,-800.88,0.00021501,3]
[350215429,1737696661318,-1876.67,0.00021501,3]
[350215430,1737696661328,-531.5,0.00021501,3]
[350215431,1737696661337,-500.0,0.00021502,3]
[350215432,1737696661346,-1556.76,0.00021502,3]
[350215433,1737696661356,-500.0,0.00021502,3]
[350215434,1737696661365,-500.0,0.00021502,3]
[350215435,1737696661375,-500.0,0.00021502,3]
[350215436,1737696661384,-500.0,0.00021502,2]
[350215437,1737696661394,-437.2,0.00021502,3]
[350215438,1737696661403,-500.0,0.00021502,3]
[350215439,1737696661412,-644.83,0.00021502,3]
[350215440,1737696661422,-9109.92,0.00021502,3]
[350215441,1737696661432,-500.0,0.00021502,3]
[350215442,1737696661442,-500.0,0.00021502,3]
[350215443,1737696661451,-500.0,0.00021502,3]
[350215444,1737696661463,-548.08,0.00021502,3]
[350215445,1737696661473,-691.98,0.00021502,3]
[350215446,1737696661482,-500.0,0.00021502,3]
[350215447,1737696661491,-9911.72,0.00021502,3]
[350215448,1737696661502,-2566.52,0.00021502,3]
[350215449,1737696661511,-500.0,0.00021502,3]
[350215450,1737696661521,-500.0,0.00021502,3]
[350215451,1737696661531,-500.0,0.00021503,3]
[350215452,1737696661540,-500.0,0.00021503,3]
[350215453,1737696661550,-4162.13,0.00021503,3]
[350215454,1737696661559,-500.0,0.00021503,3]
[350215455,1737696661569,-610.76,0.00021504,3]
[350215456,1737696661578,-500.0,0.00021504,3]
[350215457,1737696661587,-500.0,0.00021504,3]
[350215458,1737696661597,-1200.03,0.00021543,3]
[350215459,1737696661606,-500.0,0.00021543,3]
[350215460,1737696661616,-563.70395069,0.00021572,2]
[350215461,1737696661625,-690.31,0.000216,2]
[350215462,1737696661635,-213.19183091,0.00021614,3]
[350215463,1737696661644,-1425.27,0.00021638,3]
[350215464,1737696661654,-2140.23,0.00021638,3]
[350215465,1737696661663,-956.22,0.00021638,3]
[350215466,1737696661673,-562.0,0.00021638,3]
[350215467,1737696661682,-1228.47,0.00021638,3]
[350215468,1737696661691,-500.0,0.00021638,3]
[350215469,1737696661700,-759.03,0.00021638,3]
[350215470,1737696661712,-500.0,0.00021638,3]
[350215471,1737696661721,-500.0,0.00021638,3]
[350215472,1737696661730,-300.2,0.00021638,3]
[350215473,1737696661743,-1061.97,0.00021638,3]
[350215474,1737696661752,-1873.1,0.00021638,3]
[350215475,1737696661762,-500.0,0.00021638,3]
[350215476,1737696661771,-500.0,0.00021638,3]
[350215477,1737696661781,-800.88,0.00021638,3]
[350215478,1737696661791,-1876.67,0.00021638,3]
[350215479,1737696661800,-531.5,0.00021638,3]
[350215480,1737696661810,-220.52,0.00021639,3]
[350215481,1737696661819,-1556.76,0.00021639,3]
[350215482,1737696661828,-500.0,0.00021639,3]
[350215483,1737696661838,-489.08,0.00021639,3]
[350215484,1737696661847,-500.0,0.00021639,3]
[350215485,1737696661856,-500.0,0.00021639,2]
[350215486,1737696661866,-500.0,0.00021639,3]
[350215487,1737696661875,-644.83,0.00021639,3]
[350215488,1737696661885,-9109.92,0.00021639,3]
[350215489,1737696661895,-151.64,0.00021639,3]
[350215490,1737696661905,-435.62,0.00021639,3]
[350215491,1737696661914,-500.0,0.00021639,3]
[350215492,1737696661923,-691.98,0.00021639,3]
[350215493,1737696661933,-500.0,0.00021639,3]
[350215494,1737696661942,-9911.72,0.00021639,3]
[350215495,1737696661953,-2566.52,0.00021639,3]
[350215496,1737696661968,-500.0,0.00021639,3]
[350215497,1737696661977,-500.0,0.00021639,3]
[350215498,1737696661987,-500.0,0.0002164,3]
[350215499,1737696661996,-500.0,0.0002164,3]
[350215500,1737696662006,-4162.13,0.0002164,3]
[350215501,1737696662016,-500.0,0.0002164,3]
[350215502,1737696662025,-500.0,0.00021641,3]
[350215503,1737696662035,-500.0,0.00021641,3]
[350215504,1737696662044,-1200.03,0.0002168,3]
[350215505,1737696662055,-500.0,0.0002168,3]
[350215506,1737696662064,-4190.94348186,0.00021725,2]
[350215507,1737696662074,-1425.27,0.00021775,3]
[350215508,1737696662083,-2140.23,0.00021775,3]
[350215509,1737696662093,-956.22,0.00021775,3]
[350215510,1737696662102,-562.0,0.00021775,3]
[350215511,1737696662112,-1228.47,0.00021775,3]
[350215512,1737696662122,-500.0,0.00021775,3]
[350215513,1737696662131,-759.03,0.00021775,3]
[350215514,1737696662140,-500.0,0.00021775,3]
[350215515,1737696662150,-500.0,0.00021775,3]
[350215516,1737696662160,-1061.97,0.00021775,3]
[350215517,1737696662169,-1873.1,0.00021775,3]
[350215518,1737696662179,-500.0,0.00021775,3]
[350215519,1737696662190,-500.0,0.00021775,3]
[350215520,1737696662200,-800.88,0.00021775,3]
[350215521,1737696662212,-1876.67,0.00021775,3]
[350215522,1737696662221,-531.5,0.00021775,3]
[350215523,1737696662230,-1556.76,0.00021776,3]
[350215524,1737696662240,-500.0,0.00021776,3]
[350215525,1737696662250,-500.0,0.00021776,3]
[350215526,1737696662260,-500.0,0.00021776,2]
[350215527,1737696662269,-500.0,0.00021776,3]
[350215528,1737696662280,-644.83,0.00021776,3]
[350215529,1737696662289,-9109.92,0.00021776,3]
[350215530,1737696662299,-500.0,0.00021776,3]
[350215531,1737696662309,-691.98,0.00021776,3]
[350215532,1737696662318,-287.75,0.00021776,3]
[350215533,1737696662328,-9911.72,0.00021776,3]
[350215534,1737696662400,-2566.52,0.00021776,3]
[350215535,1737696662410,-500.0,0.00021776,3]
[350215536,1737696662420,-500.0,0.00021776,3]
[350215537,1737696662429,-500.0,0.00021777,3]
[350215538,1737696662439,-480.57912846,0.00021777,3]
[350215539,1737696662448,-4162.13,0.00021777,3]
[350215540,1737696662459,-519.1,0.00021777,3]
[350215541,1737696662469,-500.0,0.00021778,3]
[350215542,1737696662478,-617.65,0.00021778,3]
[350215543,1737696662488,-1200.03,0.00021817,3]
[350215544,1737696662498,-500.0,0.00021817,3]
[350215545,1737696662507,-381.818,0.0002185,2]
[350215546,1737696662516,-151.0,0.000219,4]
[350215547,1737696662526,-1425.27,0.00021912,3]
[350215548,1737696662536,-2140.23,0.00021912,3]
[350215549,1737696662545,-956.22,0.00021912,3]
[350215550,1737696662555,-562.0,0.00021912,3]
[350215551,1737696662564,-1228.47,0.00021912,3]
[350215552,1737696662574,-500.0,0.00021912,3]
[350215553,1737696662583,-759.03,0.00021912,3]
[350215554,1737696662593,-500.0,0.00021912,3]
[350215555,1737696662603,-500.0,0.00021912,3]
[350215556,1737696662613,-1061.97,0.00021912,3]
[350215557,1737696662623,-1873.1,0.00021912,3]
[350215558,1737696662633,-500.0,0.00021912,3]
[350215559,1737696662643,-500.0,0.00021912,3]
[350215560,1737696662652,-800.88,0.00021912,3]
[350215561,1737696662661,-1876.67,0.00021912,3]
[350215562,1737696662671,-531.5,0.00021912,3]
[350215563,1737696662680,-1556.76,0.00021913,3]
[350215564,1737696662690,-529.0,0.00021913,3]
[350215565,1737696662699,-500.0,0.00021913,3]
[350215566,1737696662710,-500.0,0.00021913,2]
[350215567,1737696662719,-500.0,0.00021913,3]
[350215568,1737696662729,-644.83,0.00021913,3]
[350215569,1737696662738,-9109.92,0.00021913,3]
[350215570,1737696662748,-500.0,0.00021913,3]
[350215571,1737696662758,-691.98,0.00021913,3]
[350215572,1737696662767,-9911.72,0.00021913,3]
[350215573,1737696662777,-2566.52,0.00021913,3]
[350215574,1737696662786,-500.0,0.00021913,3]
[350215575,1737696662795,-500.0,0.00021913,3]
[350215576,1737696662805,-412.34,0.00021914,3]
[350215577,1737696662814,-4162.13,0.00021914,3]
[350215578,1737696662823,-500.0,0.00021915,3]
[350215579,1737696662833,-500.0,0.00021917,3]
[350215580,1737696662843,-184.81898242,0.00021917,3]
[350215581,1737696662852,-500.0,0.00021917,3]
[350215582,1737696662861,-500.0,0.00021917,3]
[350215583,1737696662871,-500.0,0.00021917,3]
[350215584,1737696662880,-1200.03,0.00021954,3]
[350215585,1737696662890,-500.0,0.00021954,3]
[350215586,1737696662899,-530.17577257,0.00022,5]
[350215587,1737696662908,-4190.94348186,0.00022023,2]
[350215588,1737696662917,-1425.27,0.00022049,3]
[350215589,1737696662926,-2140.23,0.00022049,3]
[350215590,1737696662936,-956.22,0.00022049,3]
[350215591,1737696662945,-562.0,0.00022049,3]
[350215592,1737696662957,-1228.47,0.00022049,3]
[350215593,1737696662968,-500.0,0.00022049,3]
[350215594,1737696662979,-759.03,0.00022049,3]
[350215595,1737696662988,-500.0,0.00022049,3]
[350215596,1737696662997,-520.15,0.00022049,3]
[350215597,1737696663007,-1061.97,0.00022049,3]
[350215598,1737696663016,-1873.1,0.00022049,3]
[350215599,1737696663026,-500.0,0.00022049,3]
[350215600,1737696663036,-500.0,0.00022049,3]
[350215601,1737696663046,-800.88,0.00022049,3]
[350215602,1737696663056,-1876.67,0.00022049,3]
[350215603,1737696663066,-531.5,0.00022049,3]
[350215604,1737696663076,-1556.76,0.0002205,3]
[350215605,1737696663086,-467.06,0.0002205,3]
[350215606,1737696663096,-500.0,0.0002205,2]
[350215607,1737696663106,-500.0,0.0002205,3]
[350215608,1737696663116,-644.83,0.0002205,3]
[350215609,1737696663126,-9109.92,0.0002205,3]
[350215610,1737696663136,-500.0,0.0002205,3]
[350215611,1737696663146,-691.98,0.0002205,3]
[350215612,1737696663156,-9911.72,0.0002205,3]
[350215613,1737696663166,-2566.52,0.0002205,3]
[350215614,1737696663177,-500.0,0.0002205,3]
[350215615,1737696663187,-500.0,0.0002205,3]
[350215616,1737696663197,-4162.13,0.00022051,3]
[350215617,1737696663208,-168.75300785,0.00022052,3]
[350215618,1737696663218,-1200.03,0.00022091,3]
[350215619,1737696663228,-500.0,0.00022091,3]
[350215620,1737696663237,-563.70395069,0.00022131,2]
[350215621,1737696663247,-1200.0,0.00022181,2]
[350215622,1737696663257,-665.726,0.00022181,2]
[350215623,1737696663267,-297.727,0.00022181,2]
[350215624,1737696663277,-213.19183091,0.00022186,3]
[350215625,1737696663287,-1425.27,0.00022186,3]
[350215626,1737696663296,-2140.23,0.00022186,3]
[350215627,1737696663306,-956.22,0.00022186,3]
[350215628,1737696663316,-562.0,0.00022186,3]
[350215629,1737696663326,-1228.47,0.00022186,3]
[350215630,1737696663335,-500.0,0.00022186,3]
[350215631,1737696663345,-759.03,0.00022186,3]
[350215632,1737696663355,-500.0,0.00022186,3]
[350215633,1737696663366,-1061.97,0.00022186,3]
[350215634,1737696663376,-1873.1,0.00022186,3]
[350215635,1737696663386,-500.0,0.00022186,3]
[350215636,1737696663396,-500.0,0.00022186,3]
[350215637,1737696663406,-800.88,0.00022186,3]
[350215638,1737696663416,-1876.67,0.00022186,3]
[350215639,1737696663426,-531.5,0.00022186,3]
[350215640,1737696663436,-1556.76,0.00022187,3]
[350215641,1737696663446,-500.0,0.00022187,2]
[350215642,1737696663458,-265.2,0.00022187,3]
[350215643,1737696663532,-644.83,0.00022187,3]
[350215644,1737696663543,-9109.92,0.00022187,3]
[350215645,1737696663554,-500.0,0.00022187,3]
[350215646,1737696663565,-691.98,0.00022187,3]
[350215647,1737696663576,-9911.72,0.00022187,3]
[350215648,1737696663587,-2566.52,0.00022187,3]
[350215649,1737696663598,-500.0,0.00022187,3]
[350215650,1737696663608,-500.0,0.00022187,3]
[350215651,1737696663618,-4162.13,0.00022188,3]
[350215652,1737696663628,-1200.03,0.00022228,3]
[350215653,1737696663639,-500.0,0.00022228,3]
[350215654,1737696663650,-4190.94348186,0.00022321,2]
[350215655,1737696663660,-1425.27,0.00022323,3]
[350215656,1737696663671,-2140.23,0.00022323,3]
[350215657,1737696663682,-956.22,0.00022323,3]
[350215658,1737696663692,-562.0,0.00022323,3]
[350215659,1737696663703,-1228.47,0.00022323,3]
[350215660,1737696663715,-500.0,0.00022323,3]
[350215661,1737696663725,-759.03,0.00022323,3]
[350215662,1737696663735,-500.0,0.00022323,3]
[350215663,1737696663745,-1061.97,0.00022323,3]
[350215664,1737696663755,-1873.1,0.00022323,3]
[350215665,1737696663766,-500.0,0.00022323,3]
[350215666,1737696663776,-630.3,0.00022323,3]
[350215667,1737696663786,-800.88,0.00022323,3]
[350215668,1737696663796,-1876.67,0.00022323,3]
[350215669,1737696663807,-531.5,0.00022323,3]
[350215670,1737696663817,-1556.76,0.00022324,3]
[350215671,1737696663827,-366.55,0.00022324,2]
[350215672,1737696663837,-644.83,0.00022324,3]
[350215673,1737696663847,-9109.92,0.00022324,3]
[350215674,1737696663857,-500.0,0.00022324,3]
[350215675,1737696663867,-691.98,0.00022324,3]
[350215676,1737696663877,-9911.72,0.00022324,3]
[350215677,1737696663887,-2566.52,0.00022324,3]
[350215678,1737696663897,-500.0,0.00022324,3]
[350215679,1737696663907,-500.0,0.00022324,3]
[350215680,1737696663917,-4162.13,0.00022325,3]
[350215681,1737696663927,-1200.03,0.00022365,3]
[350215682,1737696663937,-500.0,0.00022365,3]
[350215683,1737696663947,-258.61337464,0.00022456,2]
[350215684,1737696663960,-500.0,0.00022456,2]
[350215685,1737696663975,-500.0,0.00022456,2]
[350215686,1737696663985,-1425.27,0.0002246,3]
[350215687,1737696663995,-2140.23,0.0002246,3]
[350215688,1737696664006,-956.22,0.0002246,3]
[350215689,1737696664015,-562.0,0.0002246,3]
[350215690,1737696664026,-1228.47,0.0002246,3]
[350215691,1737696664036,-500.0,0.0002246,3]
[350215692,1737696664047,-759.03,0.0002246,3]
[350215693,1737696664057,-500.0,0.0002246,3]
[350215694,1737696664067,-1061.97,0.0002246,3]
[350215695,1737696664077,-1873.1,0.0002246,3]
[350215696,1737696664087,-500.0,0.0002246,3]
[350215697,1737696664097,-800.88,0.0002246,3]
[350215698,1737696664107,-1876.67,0.0002246,3]
[350215699,1737696664116,-531.5,0.0002246,3]
[350215700,1737696664125,-1556.76,0.00022461,3]
[350215701,1737696664135,-644.83,0.00022461,3]
[350215702,1737696664146,-9109.92,0.00022461,3]
[350215703,1737696664156,-500.0,0.00022461,3]
[350215704,1737696664165,-691.98,0.00022461,3]
[350215705,1737696664175,-9911.72,0.00022461,3]
[350215706,1737696664185,-2566.52,0.00022461,3]
[350215707,1737696664195,-500.0,0.00022461,3]
[350215708,1737696664207,-486.12,0.00022461,3]
[350215709,1737696664216,-4162.13,0.00022462,3]
[350215710,1737696664226,-3433.92,0.000225,14]
[350215711,1737696664237,-6521.85,0.000225,2]
[350215712,1737696664247,-195.0,0.000225,2]
[350215713,1737696664256,-24721.44172196,0.000225,2]
[350215714,1737696664266,-500.0,0.000225,2]
[350215715,1737696664276,-1200.03,0.00022502,3]
[350215716,1737696664286,-500.0,0.00022502,3]
[350215717,1737696664295,-587.0,0.0002257,2]
[350215718,1737696664305,-440.92979906,0.00022575,3]
[350215719,1737696664314,-502.18369923,0.00022575,3]
[350215720,1737696664324,-500.0,0.00022575,3]
[350215721,1737696664334,-500.45486258,0.00022575,3]
[350215722,1737696664343,-505.24989267,0.00022575,3]
[350215723,1737696664353,-620.21767581,0.00022575,3]
[350215724,1737696664362,-506.81487932,0.00022575,3]
[350215725,1737696664372,-502.64545848,0.00022575,3]
[350215726,1737696664381,-500.0,0.00022575,3]
[350215727,1737696664391,-228.19817273,0.00022575,3]
[350215728,1737696664401,-500.0,0.00022575,3]
[350215729,1737696664411,-500.0,0.00022575,3]
[350215730,1737696664420,-500.80372381,0.00022575,3]
[350215731,1737696664430,-500.0,0.00022575,3]
[350215732,1737696664439,-503.61152882,0.00022575,3]
[350215733,1737696664458,-505.25493076,0.00022575,3]
[350215734,1737696664470,-559.22,0.00022575,3]
[350215735,1737696664481,-411.25646923,0.00022575,3]
[350215736,1737696664491,-500.0,0.00022575,3]
[350215737,1737696664501,-1425.27,0.00022597,3]
[350215738,1737696664512,-2140.23,0.00022597,3]
[350215739,1737696664522,-956.22,0.00022597,3]
[350215740,1737696664533,-562.0,0.00022597,3]
[350215741,1737696664543,-1228.47,0.00022597,3]
[350215742,1737696664553,-500.0,0.00022597,3]
[350215743,1737696664563,-759.03,0.00022597,3]
[350215744,1737696664671,-500.0,0.00022597,3]
[350215745,1737696664681,-1061.97,0.00022597,3]
[350215746,1737696664690,-1873.1,0.00022597,3]
[350215747,1737696664701,-500.0,0.00022597,3]
[350215748,1737696664712,-800.88,0.00022597,3]
[350215749,1737696664722,-1876.67,0.00022597,3]
[350215750,1737696664731,-531.5,0.00022597,3]
[350215751,1737696664741,-1556.76,0.00022598,3]
[350215752,1737696664750,-644.83,0.00022598,3]
[350215753,1737696664760,-9109.92,0.00022598,3]
[350215754,1737696664770,-500.0,0.00022598,3]
[350215755,1737696664779,-691.98,0.00022598,3]
[350215756,1737696664789,-9911.72,0.00022598,3]
[350215757,1737696664799,-2566.52,0.00022598,3]
[350215758,1737696664809,-500.0,0.00022598,3]
[350215759,1737696664818,-4162.13,0.00022599,3]
[350215760,1737696664828,-4190.94348186,0.00022619,2]
[350215761,1737696664838,-1200.03,0.00022639,3]
[350215762,1737696664847,-500.0,0.00022639,3]
[350215763,1737696664857,-563.70395069,0.0002269,2]
[350215764,1737696664866,-1425.27,0.00022734,3]
[350215765,1737696664876,-2140.23,0.00022734,3]
[350215766,1737696664885,-956.22,0.00022734,3]
[350215767,1737696664895,-562.0,0.00022734,3]
[350215768,1737696664905,-1228.47,0.00022734,3]
[350215769,1737696664915,-500.0,0.00022734,3]
[350215770,1737696664924,-759.03,0.00022734,3]
[350215771,1737696664934,-498.16,0.00022734,3]
[350215772,1737696664943,-1061.97,0.00022734,3]
[350215773,1737696664953,-1873.1,0.00022734,3]
[350215774,1737696664968,-500.0,0.00022734,3]
[350215775,1737696664978,-800.88,0.00022734,3]
[350215776,1737696664988,-1876.67,0.00022734,3]
[350215777,1737696664997,-531.5,0.00022734,3]
[350215778,1737696665007,-1556.76,0.00022735,3]
[350215779,1737696665017,-644.83,0.00022735,3]
[350215780,1737696665027,-9109.92,0.00022735,3]
[350215781,1737696665036,-424.0,0.00022735,3]
[350215782,1737696665047,-691.98,0.00022735,3]
[350215783,1737696665056,-9911.72,0.00022735,3]
[350215784,1737696665066,-2566.52,0.00022735,3]
[350215785,1737696665075,-500.0,0.00022735,3]
[350215786,1737696665085,-4162.13,0.00022736,3]
[350215787,1737696665094,-213.19183091,0.00022757,3]
[350215788,1737696665104,-1200.03,0.00022776,3]
[350215789,1737696665114,-628.9,0.00022776,3]
[350215790,1737696665123,-1425.27,0.00022871,3]
[350215791,1737696665142,-2140.23,0.00022871,3]
[350215792,1737696665160,-956.22,0.00022871,3]
[350215793,1737696665179,-562.0,0.00022871,3]
[350215794,1737696665200,-1228.47,0.00022871,3]
[350215795,1737696665224,-426.68,0.00022871,3]
[350215796,1737696665242,-759.03,0.00022871,3]
[350215797,1737696665261,-1061.97,0.00022871,3]
[350215798,1737696665275,-1873.1,0.00022871,3]
[350215799,1737696665292,-500.0,0.00022871,3]
[350215800,1737696665313,-800.88,0.00022871,3]
[350215801,1737696665334,-1876.67,0.00022871,3]
[350215802,1737696665347,-531.5,0.00022871,3]
[350215803,1737696665366,-1556.76,0.00022872,3]
[350215804,1737696665383,-644.83,0.00022872,3]
[350215805,1737696665400,-8794.20460359,0.00022872,3]
[350215806,1737696929225,328.07,0.00024,120]
[350215835,1737697421305,163.302526,0.00013973,2]
[350215887,1737697832599,-177.14444,0.00017808,2]
[350215889,1737697832608,-193.104864,0.00018083,2]
[350215891,1737697832618,-6304.6413369,0.00018274,2]
[350215901,1737697832711,-369.7398008,0.00018274,2]
[350215903,1737697832721,-300.0,0.00018443,2]
[350215905,1737697832731,-4243.66114983,0.00018444,3]
[350216016,1737697838692,-592.6162049,0.00018444,3]
[350216018,1737697838701,-363.7035378,0.00018478,2]
[350216020,1737697838711,-362.8763655,0.00018533,2]
[350216022,1737697838720,-393.38601546,0.00019,2]
[350216024,1737697838729,-1285.46471571,0.00019014,2]
[350216026,1737697838738,-175.819443,0.00019178,2]
[350216028,1737697838748,-272.51032859,0.00019389,2]
[350216029,1737697838757,-464.03535764,0.00019398,2]
[350216031,1737697838766,-152.0,0.00019473,2]
[350216033,1737697838776,-596.14,0.00019487,3]
[350216035,1737697838785,-159.62,0.00019488,2]
[350216037,1737697838795,-2382.39,0.00019488,3]
[350216039,1737697838804,-1191.19,0.00019488,3]
[350216040,1737697838813,-595.6,0.00019488,3]
[350216041,1737697838822,-297.8,0.00019488,3]
[350216043,1737697838832,-893.4,0.00019488,3]
[350216045,1737697838841,-502.25128899,0.00019497,3]
[350216046,1737697838850,-500.0,0.00019497,3]
[350216047,1737697838859,-500.0,0.00019497,3]
[350216048,1737697838868,-500.0,0.00019497,3]
[350216049,1737697838877,-500.0,0.00019497,3]
[350216050,1737697838886,-500.0,0.00019497,3]
[350216051,1737697838895,-500.0,0.00019497,3]
[350216052,1737697838905,-500.0,0.00019497,3]